bitfinex-derivatives/quotes_BTCF0:USTF0_20220102
["timestamp","ask_amount","ask_price","bid_price","bid_amount"]
[1641100228790,0.36311876,46947.0,46946.0,0.00941713]
[1641100229593,0.36311876,46947.0,46945.0,0.00941713]
[1641100229795,0.36311876,46947.0,46946.0,0.00941713]
[1641100230397,0.36311876,46947.0,46945.0,0.00941713]
[1641100230595,0.36311876,46947.0,46946.0,0.00941713]
[1641100231096,0.36311876,46947.0,46945.0,0.00941713]
[1641100231296,0.36311876,46947.0,46946.0,0.00941713]
[1641100231698,0.36311876,46947.0,46944.0,0.00941713]
[1641100231999,0.36311876,46947.0,46944.0,0.1497528]
[1641100232597,0.36311876,46947.0,46945.0,0.00941713]
[1641100240013,0.36311876,46947.0,46946.0,0.06431491]
[1641100240613,0.36311876,46947.0,46946.0,0.07373204]
[1641100241114,0.36311876,46947.0,46946.0,0.00941713]
[1641100241530,0.36311876,46947.0,46945.0,0.00941713]
[1641100241731,0.36311876,46947.0,46946.0,0.06419029]
[1641100242133,0.36311876,46947.0,46946.0,0.07360742]
[1641100242432,0.36311876,46947.0,46946.0,0.00941713]
[1641100243033,0.36311876,46947.0,46945.0,0.00941713]
[1641100243233,0.36311876,46947.0,46946.0,0.00941713]
[1641100243834,0.36311876,46947.0,46945.0,0.00941713]
[1641100244034,0.36311876,46947.0,46946.0,0.00941713]
[1641100244234,0.60519793,46949.0,46946.0,0.00941713]
[1641100244235,0.60519793,46948.0,46946.0,0.00941713]
[1641100244634,0.60519793,46948.0,46945.0,0.00941713]
[1641100244835,0.60519793,46948.0,46944.0,0.14033567]
[1641100245236,0.60519793,46948.0,46946.0,0.00941831]
[1641100245438,0.36311368,46946.0,46945.0,0.00941831]
[1641100245635,0.36311368,46946.0,46944.0,0.14033567]
[1641100245940,0.36311368,46946.0,46945.0,0.00941825]
[1641100246136,0.36311368,46947.0,46945.0,0.07360655]
[1641100246637,0.36311368,46947.0,46946.0,0.00941825]
[1641100247137,0.36311368,46947.0,46945.0,0.00941825]
[1641100247337,0.36311368,46947.0,46946.0,0.00941825]
[1641100247639,0.36311368,46947.0,46945.0,0.00941825]
[1641100248240,0.43038368,46947.0,46945.0,0.00941825]
[1641100249740,0.36311368,46946.0,46945.0,0.00941825]
[1641100254849,0.36311368,46946.0,46945.0,0.07270094]
[1641100255447,0.36311368,46946.0,46945.0,0.00941825]
[1641100255650,0.36311368,46946.0,46944.0,0.14033567]
[1641100256052,0.36311368,46946.0,46945.0,0.00941749]
[1641100256351,0.60519793,46947.0,46944.0,0.14033567]
[1641100256551,0.60519793,46946.0,46944.0,0.14033567]
[1641100258856,0.60519793,46946.0,46945.0,0.00941752]
[1641100261761,0.60519793,46946.0,46944.0,0.14033567]
[1641100262562,0.60519793,46945.0,46944.0,0.14033567]
[1641100263062,0.60519793,46945.0,46944.0,0.14975339]
[1641100265167,0.36297339,46946.0,46944.0,0.14975339]
[1641100265768,0.36297339,46946.0,46944.0,0.14033567]
[1641100267267,0.36297339,46945.0,46944.0,0.14033567]
[1641100270189,0.60519793,46946.0,46944.0,0.14033567]
[1641100272092,0.36296119,46945.0,46944.0,0.14033567]
[1641100272690,0.60519793,46946.0,46944.0,0.14033567]
[1641100274493,0.36295195,46945.0,46944.0,0.14033567]
[1641100280605,0.60519793,46947.0,46944.0,0.14033567]
[1641100280803,0.60519793,46946.0,46944.0,0.24300095]
[1641100281000,0.60519793,46946.0,46945.0,0.18]
[1641100281201,0.60519793,46946.0,46945.0,0.72278879]
[1641100281601,0.60519793,46950.0,46947.0,0.2112]
[1641100281799,0.60519793,46950.0,46949.0,0.001]
[1641100282501,0.60519793,46950.0,46949.0,0.01041971]
[1641100282803,0.60519793,46950.0,46949.0,0.35253567]
[1641100283102,0.60519793,46952.0,46949.0,0.36195538]
[1641100283301,0.60519793,46952.0,46951.0,0.001]
[1641100284001,0.60519793,46954.0,46951.0,0.0094194]
[1641100284200,0.60519793,46954.0,46950.0,0.0094194]
[1641100284400,0.60519793,46954.0,46949.0,0.14033567]
[1641100284601,0.60519793,46954.0,46951.0,0.00942014]
[1641100284902,0.60519793,46954.0,46950.0,0.00942014]
[1641100285104,0.60519793,46954.0,46949.0,0.14033567]
[1641100285306,0.60519793,46954.0,46953.0,0.001]
[1641100285504,0.60519793,46955.0,46953.0,0.001]
[1641100285804,0.60519793,46956.0,46954.0,0.001]
[1641100286006,0.60519793,46956.0,46955.0,0.001]
[1641100286205,1.32922401,46963.0,46955.0,0.001]
[1641100286404,1.32922401,46963.0,46957.0,0.18]
[1641100286805,1.32922401,46963.0,46957.0,0.32033567]
[1641100287815,1.32922401,46963.0,46958.0,0.32055]
[1641100288015,0.12716164,46963.0,46958.0,0.32055]
[1641100288810,0.12716164,46963.0,46957.0,0.14033567]
[1641100288811,0.12716164,46963.0,46962.0,0.14033567]
[1641100289410,0.009794,46968.0,46962.0,0.14033567]
[1641100290011,0.12716164,46963.0,46962.0,0.14033567]
[1641100290813,0.12716164,46963.0,46957.0,0.14033567]
[1641100291012,0.26749731,46967.0,46957.0,0.14033567]
[1641100291312,0.36270138,46960.0,46957.0,0.14033567]
[1641100294616,0.36270138,46960.0,46957.0,0.32033567]
[1641100295620,0.36270138,46962.0,46957.0,0.32033567]
[1641100295817,0.36270138,46962.0,46957.0,0.14033567]
[1641100297418,0.36270138,46960.0,46957.0,0.14033567]
[1641100298019,0.36270138,46958.0,46957.0,0.14033567]
[1641100299319,0.36270138,46959.0,46957.0,0.14033567]
[1641100299920,0.36270138,46958.0,46957.0,0.14033567]
[1641100302438,0.36270138,46959.0,46957.0,0.14033567]
[1641100303140,0.36270138,46960.0,46957.0,0.14033567]
[1641100303539,0.36270138,46960.0,46952.0,1.18177124]
[1641100304339,0.36270138,46960.0,46953.0,0.00942111]
[1641100304538,0.36270138,46959.0,46953.0,0.00942111]
[1641100305139,0.36270138,46959.0,46958.0,0.14033567]
[1641100305739,0.36270138,46960.0,46958.0,0.14033567]
[1641100306343,0.60446776,46961.0,46958.0,0.14033567]
[1641100306540,0.18,46959.0,46955.0,0.14033567]
[1641100306741,0.18,46956.0,46951.0,0.14033567]
[1641100307141,0.009794,46955.0,46950.0,1.18177124]
[1641100307344,0.18,46951.0,46950.0,1.18177124]
[1641100307542,0.07136,46951.0,46950.0,1.18177124]
[1641100307941,0.07136,46951.0,46949.0,1.18177124]
[1641100308843,0.36270403,46950.0,46949.0,1.18177124]
[1641100309044,0.36270403,46950.0,46946.0,0.14033567]
[1641100309945,0.36270403,46947.0,46946.0,0.14033567]
[1641100311245,0.60446776,46948.0,46946.0,0.14033567]
[1641100312044,0.2110981,46947.0,46945.0,0.99347124]
[1641100312244,0.2110981,46947.0,46941.0,1.44162793]
[1641100312245,0.18,46946.0,46937.0,1.39915572]
[1641100312446,0.18,46938.0,46930.0,1.57112867]
[1641100312644,0.18,46935.0,46930.0,1.57112867]
[1641100312844,0.18,46931.0,46930.0,1.57112867]
[1641100313044,0.189794,46931.0,46930.0,1.57112867]
[1641100314046,0.189794,46931.0,46921.0,0.14033567]
[1641100314245,0.18,46926.0,46921.0,0.14033567]
[1641100314544,0.2713,46926.0,46921.0,0.14033567]
[1641100317246,0.41163567,46926.0,46919.0,0.02]
[1641100317445,0.41163567,46926.0,46919.0,1.44356699]
[1641100318046,0.41163567,46926.0,46920.0,0.08980537]
[1641100318345,0.41163567,46926.0,46919.0,1.44356699]
[1641100318648,0.23163567,46926.0,46919.0,1.44356699]
[1641100318945,0.14033567,46926.0,46919.0,1.44356699]
[1641100319145,0.14033567,46926.0,46920.0,0.08975953]
[1641100319349,0.3631055,46928.0,46920.0,0.2300952]
[1641100319546,0.3631055,46928.0,46921.0,0.319217]
[1641100320147,0.3631055,46929.0,46921.0,1.74278399]
[1641100321547,0.3631055,46930.0,46922.0,1.42356699]
[1641100323149,0.3631055,46930.0,46921.0,1.42356699]
[1641100323352,0.3631055,46929.0,46921.0,1.42356699]
[1641100323551,0.3631055,46929.0,46922.0,0.08710034]
[1641100324751,0.18,46928.0,46922.0,0.08710034]
[1641100325152,0.5431055,46928.0,46920.0,1.70423833]
[1641100325352,0.3631055,46928.0,46920.0,1.70423833]
[1641100325554,0.009794,46927.0,46920.0,1.70423833]
[1641100325752,0.4472895,46927.0,46920.0,0.28067134]
[1641100326757,0.3631055,46926.0,46920.0,0.28067134]
[1641100327956,0.3631055,46926.0,46921.0,0.00942911]
[1641100328757,0.60516078,46927.0,46921.0,0.00942911]
[1641100328956,0.3631055,46928.0,46921.0,0.00942911]
[1641100329356,0.5431055,46928.0,46921.0,0.00942911]
[1641100329958,0.5528995,46928.0,46921.0,0.00942911]
[1641100330558,0.3631055,46926.0,46921.0,0.00942911]
[1641100331558,0.11314034,46927.0,46921.0,0.00942911]
[1641100335661,0.02131034,46927.0,46921.0,0.00942911]
[1641100339964,0.0213084,46931.0,46921.0,0.00942911]
[1641100341364,0.16164182,46936.0,46924.0,0.18]
[1641100341563,0.16164182,46936.0,46928.0,0.14033567]
[1641100342073,0.14033567,46936.0,46928.0,0.14033567]
[1641100342479,0.14033567,46936.0,46928.0,0.35153567]
[1641100342664,0.14033567,46936.0,46928.0,0.53153567]
[1641100342864,0.14033567,46936.0,46928.0,0.35153567]
[1641100343664,0.14033567,46936.0,46928.0,0.53153567]
[1641100344264,0.14033567,46936.0,46928.0,0.35153567]
[1641100344666,0.14033567,46936.0,46928.0,0.53153567]
[1641100345267,0.14033567,46936.0,46928.0,0.35153567]
[1641100350884,0.1452931,46935.0,46928.0,0.35153567]
[1641100351086,1.32615081,46934.0,46928.0,0.35153567]
[1641100351283,1.32615081,46934.0,46933.0,0.001]
[1641100351888,0.1452931,46935.0,46933.0,0.001]
[1641100352086,0.1452931,46935.0,46928.0,0.35153567]
[1641100353087,0.1452931,46935.0,46929.0,0.00942054]
[1641100353587,0.14033567,46936.0,46929.0,0.00942054]
[1641100353788,0.36284735,46933.0,46928.0,0.35153567]
[1641100353988,0.60474558,46935.0,46932.0,0.181]
[1641100354189,1.44670998,46946.0,46936.0,0.42610411]
[1641100354389,1.44670998,46946.0,46937.0,0.18]
[1641100354589,1.44670998,46946.0,46937.0,0.180906]
[1641100354797,1.44670998,46947.0,46942.0,0.001]
[1641100354991,1.44670998,46947.0,46946.0,0.001]
[1641100355592,0.14511394,46947.0,46946.0,0.001]
[1641100356194,0.14511394,46947.0,46942.0,0.05947]
[1641100357396,0.14511394,46947.0,46946.0,0.001]
[1641100357595,0.14511394,46947.0,46946.0,0.06003505]
[1641100357996,0.14511394,46947.0,46946.0,0.001]
[1641100359097,0.02129809,46954.0,46946.0,0.001]
[1641100359296,0.15012967,46955.0,46947.0,0.001]
[1641100365604,0.36275474,46949.0,46947.0,0.001]
[1641100367107,0.36275474,46949.0,46948.0,0.001]
[1641100367406,0.36275474,46949.0,46941.0,2.67591892]
[1641100367808,0.36275474,46949.0,46942.0,0.00941474]
[1641100368006,0.36275474,46949.0,46946.0,0.14033567]
[1641100372711,0.51288441,46955.0,46946.0,0.14033567]
[1641100374212,0.51288441,46955.0,46941.0,0.0212958]
[1641100374411,0.58219441,46955.0,46941.0,0.0212958]
[1641100374613,0.58219441,46955.0,46942.0,0.00941533]
[1641100374614,0.36275474,46953.0,46942.0,0.00941533]
[1641100375513,0.36275474,46952.0,46942.0,0.00941533]
[1641100375913,0.36275474,46951.0,46942.0,0.00941533]
[1641100376112,0.14033567,46949.0,46942.0,0.00941533]
[1641100377613,0.14033567,46949.0,46941.0,0.00941533]
[1641100377813,0.14033567,46949.0,46940.0,0.14033567]
[1641100378313,0.18,46948.0,46940.0,0.14033567]
[1641100378514,0.18,46946.0,46940.0,0.14033567]
[1641100378713,0.18,46946.0,46931.0,0.14033567]
[1641100378912,0.02130232,46945.0,46931.0,0.14033567]
[1641100379115,0.10321232,46945.0,46932.0,0.00941537]
[1641100379514,0.18,46943.0,46932.0,0.00941537]
[1641100379912,0.10321232,46945.0,46932.0,0.00941537]
[1641100380112,0.14033567,46940.0,46932.0,0.00941537]
[1641100384523,0.009794,46939.0,46932.0,0.00941537]
[1641100385322,0.009794,46939.0,46931.0,0.14033567]
[1641100386823,0.009794,46939.0,46932.0,0.00941627]
[1641100390226,0.37230261,46939.0,46932.0,0.00941627]
[1641100390825,0.009794,46939.0,46932.0,0.00941627]
[1641100391026,0.009794,46939.0,46931.0,0.14033567]
[1641100391526,0.009794,46939.0,46932.0,0.00942094]
[1641100391728,0.37230261,46939.0,46932.0,0.00942094]
[1641100395931,0.37230261,46939.0,46931.0,0.14033567]
[1641100396131,0.36250861,46939.0,46931.0,0.14033567]
[1641100396730,0.36250861,46939.0,46932.0,0.00942083]
[1641100397131,0.36250861,46939.0,46931.0,0.14033567]
[1641100397734,0.36250861,46938.0,46931.0,0.14033567]
[1641100398534,0.50284428,46940.0,46931.0,0.14033567]
[1641100401265,0.36250861,46939.0,46931.0,0.14033567]
[1641100401861,0.50284428,46940.0,46931.0,0.14033567]
[1641100403863,0.68284428,46940.0,46931.0,0.14033567]
[1641100404365,0.50284428,46940.0,46931.0,0.14033567]
[1641100404568,0.36250861,46938.0,46931.0,0.14033567]
[1641100407868,0.36250861,46939.0,46931.0,0.14033567]
[1641100409170,0.36250861,46939.0,46932.0,0.00942059]
[1641100410370,0.14033567,46940.0,46932.0,0.00942059]
[1641100410371,0.50284428,46940.0,46932.0,0.00942059]
[1641100415879,0.14033567,46940.0,46932.0,0.00942059]
[1641100416581,0.50284428,46940.0,46932.0,0.00942059]
[1641100416980,0.36250861,46933.0,46932.0,0.00942059]
[1641100417182,0.36250861,46933.0,46932.0,1.32941416]
[1641100419580,0.60418101,46933.0,46932.0,0.00942059]
[1641100420780,0.60418101,46934.0,46932.0,0.00942059]
[1641100422082,0.60418101,46933.0,46932.0,0.00942059]
[1641100422787,0.36314328,46933.0,46932.0,1.32941416]
[1641100423585,0.36314328,46933.0,46932.0,1.41381579]
[1641100424085,0.36314328,46933.0,46932.0,0.09382222]
[1641100424286,0.36314328,46934.0,46932.0,0.09382222]
[1641100424887,0.36314328,46935.0,46933.0,0.09382222]
[1641100425302,0.36314328,46935.0,46933.0,0.00942059]
[1641100425501,0.36314328,46935.0,46934.0,1.33367094]
[1641100427206,0.36314328,46935.0,46934.0,1.41773093]
[1641100427406,0.84585342,46938.0,46934.0,1.50798093]
[1641100427609,0.84585342,46938.0,46937.0,0.18]
[1641100428007,0.84585342,46938.0,46937.0,0.27348058]
[1641100428409,0.84585342,46942.0,46937.0,0.48568058]
[1641100428610,0.84585342,46942.0,46941.0,0.14133567]
[1641100429812,0.84585342,46943.0,46941.0,0.14133567]
[1641100430112,0.84585342,46943.0,46941.0,0.14033567]
[1641100430714,0.84585342,46944.0,46941.0,0.14033567]
[1641100433318,0.84585342,46945.0,46941.0,1.46830001]
[1641100433518,0.84585342,46945.0,46942.0,0.09321137]
[1641100433717,0.84585342,46945.0,46942.0,0.00941716]
[1641100433918,0.84585342,46945.0,46941.0,1.46830001]
[1641100434619,0.84585342,46945.0,46942.0,0.08379928]
[1641100434821,0.28067134,46949.0,46942.0,0.08379928]
[1641100437224,0.28067134,46949.0,46941.0,0.14033567]
[1641100437828,0.36269598,46948.0,46941.0,0.14033567]
[1641100438426,0.36269598,46947.0,46941.0,0.14033567]
[1641100443128,0.36269598,46948.0,46941.0,0.14033567]
[1641100446437,0.36269598,46947.0,46941.0,0.14033567]
[1641100449039,0.36269598,46946.0,46941.0,0.14033567]
[1641100449540,0.36269598,46947.0,46941.0,0.14033567]
[1641100452642,0.36269598,46945.0,46941.0,0.14033567]
[1641100453642,0.36269598,46945.0,46933.0,0.02129939]
[1641100454042,0.36269598,46945.0,46934.0,0.00941787]
[1641100454243,0.36269598,46945.0,46934.0,0.09271264]
[1641100454442,0.36269598,46945.0,46934.0,0.00941787]
[1641100454643,0.36269598,46943.0,46935.0,0.09271264]
[1641100454843,0.18,46939.0,46934.0,1.32796434]
[1641100455045,0.61735598,46939.0,46931.0,0.14033567]
[1641100455242,0.75769165,46939.0,46931.0,0.14033567]
[1641100455843,0.75769165,46939.0,46932.0,0.00941907]
[1641100456243,0.18,46933.0,46919.0,1.59112867]
[1641100456443,0.009794,46932.0,46919.0,1.59112867]
[1641100456743,0.009794,46932.0,46927.0,1.32653774]
[1641100457142,0.14033567,46928.0,46927.0,1.32653774]
[1641100457342,0.22312567,46928.0,46924.0,1.43648785]
[1641100457744,0.22312567,46928.0,46919.0,0.02]
[1641100457945,0.22312567,46928.0,46925.0,0.00814902]
[1641100458245,0.22312567,46928.0,46920.0,0.00814902]
[1641100458545,0.22312567,46928.0,46921.0,0.08331335]
[1641100458757,0.22312567,46928.0,46921.0,0.0914625]
[1641100458946,0.22312567,46928.0,46921.0,0.00814915]
[1641100459143,0.22312567,46928.0,46922.0,0.00814915]
[1641100459343,0.22312567,46928.0,46922.0,0.0914625]
[1641100459746,0.58582165,46928.0,46923.0,0.00814915]
[1641100460146,0.58582165,46928.0,46920.0,0.00814915]
[1641100460345,0.58582165,46928.0,46924.0,0.00814915]
[1641100460748,0.58582165,46928.0,46921.0,0.00814915]
[1641100461251,0.58582165,46928.0,46922.0,0.00814915]
[1641100461846,0.58582165,46928.0,46920.0,0.00814915]
[1641100462145,0.58582165,46928.0,46923.0,0.00814915]
[1641100462345,0.58582165,46928.0,46921.0,0.00814915]
[1641100462545,0.58582165,46928.0,46920.0,0.00814915]
[1641100462745,0.36269598,46925.0,46920.0,0.00814915]
[1641100462946,0.36269598,46925.0,46921.0,0.07621608]
[1641100463346,0.36269598,46925.0,46922.0,0.00814915]
[1641100464354,0.36269598,46925.0,46920.0,0.00814915]
[1641100464557,0.18,46931.0,46920.0,0.00814915]
[1641100464755,0.18,46931.0,46921.0,0.07620251]
[1641100465155,0.18,46931.0,46922.0,0.00814915]
[1641100465858,0.14033567,46924.0,46922.0,0.00814915]
[1641100466265,0.14033567,46924.0,46919.0,0.02]
[1641100466266,0.14033567,46924.0,46920.0,0.00814915]
[1641100466463,0.14033567,46924.0,46919.0,0.02]
[1641100466464,0.14033567,46924.0,46923.0,0.00814915]
[1641100466666,0.14033567,46924.0,46921.0,0.00814915]
[1641100467065,0.14033567,46924.0,46920.0,0.00814915]
[1641100467368,0.14033567,46924.0,46922.0,0.00814915]
[1641100467672,0.14033567,46924.0,46921.0,0.00814915]
[1641100467965,0.14033567,46924.0,46923.0,0.00814915]
[1641100468464,0.18,46931.0,46920.0,0.00814915]
[1641100468667,0.18,46931.0,46923.0,0.00814915]
[1641100468969,0.03110209,46932.0,46923.0,0.00814915]
[1641100469266,0.03110209,46932.0,46921.0,0.00814915]
[1641100469466,0.03110209,46932.0,46923.0,0.07074]
[1641100469965,0.14033567,46930.0,46924.0,0.00814915]
[1641100470967,0.14033567,46930.0,46928.0,0.18]
[1641100471366,0.14033567,46930.0,46929.0,0.00814915]
[1641100471768,0.14033567,46935.0,46929.0,0.00814915]
[1641100471769,0.14033567,46935.0,46929.0,0.18814915]
[1641100471968,0.14033567,46935.0,46929.0,0.32033567]
[1641100472167,0.14033567,46935.0,46930.0,0.00814915]
[1641100473468,0.14033567,46935.0,46921.0,0.4262393]
[1641100473967,0.14033567,46935.0,46925.0,0.14033567]
[1641100474568,0.14033567,46935.0,46926.0,0.00814602]
[1641100484577,0.009794,46936.0,46926.0,0.00814602]
[1641100484977,0.009794,46936.0,46924.0,0.00814602]
[1641100485178,0.009794,46936.0,46927.0,0.00814602]
[1641100485579,0.009794,46936.0,46925.0,0.00814602]
[1641100485778,0.009794,46936.0,46928.0,0.00814602]
[1641100485980,0.59526528,46912.0,46910.0,0.92352772]
[1641100486181,0.189794,46911.0,46899.0,1.69203277]
[1641100486380,0.18,46900.0,46889.0,1.8137494]
[1641100486580,1.19524,46900.0,46875.0,2.12190805]
[1641100486781,1.108,46895.0,46888.0,1.6872855]
[1641100486982,1.288,46889.0,46888.0,1.6872855]
[1641100487181,1.37102,46889.0,46888.0,1.59924806]
[1641100487380,1.37202,46889.0,46888.0,1.59924806]
[1641100487780,1.39335607,46889.0,46888.0,1.59924806]
[1641100487982,1.88565047,46889.0,46888.0,1.59404806]
[1641100488680,1.88565047,46889.0,46883.0,0.009794]
[1641100488681,1.95945465,46889.0,46883.0,0.009794]
[1641100488882,0.67045465,46889.0,46873.0,0.18]
[1641100489182,0.58743465,46889.0,46872.0,0.009794]
[1641100489380,0.58743465,46889.0,46874.0,0.00816426]
[1641100489782,0.58743465,46889.0,46873.0,0.00816426]
[1641100489983,0.14033567,46879.0,46875.0,0.00816426]
[1641100490185,0.22024567,46879.0,46875.0,0.00816426]
[1641100490584,0.22024567,46879.0,46876.0,0.08450133]
[1641100494886,0.22024567,46879.0,46873.0,0.08423811]
[1641100497292,0.22024567,46879.0,46870.0,0.18]
[1641100498690,0.0060778,46878.0,46870.0,0.18]
[1641100499690,0.0646778,46878.0,46869.0,0.16033567]
[1641100500092,0.0060778,46877.0,46869.0,0.16033567]
[1641100500292,0.0213354,46870.0,46869.0,0.02]
[1641100500794,0.02741468,46870.0,46869.0,0.02]
[1641100502094,0.16775035,46870.0,46869.0,0.02]
[1641100502293,0.31206858,46870.0,46869.0,0.02]
[1641100502894,1.42006858,46870.0,46869.0,0.02]
[1641100503096,0.31206858,46870.0,46869.0,0.02]
[1641100503293,0.16775035,46870.0,46869.0,0.02]
[1641100504694,0.31270295,46870.0,46869.0,0.02]
[1641100504895,1.66070295,46870.0,46869.0,0.02]
[1641100505299,0.55270295,46870.0,46869.0,0.02]
[1641100505899,1.66070295,46870.0,46869.0,0.02]
[1641100506600,1.66070484,46870.0,46869.0,0.02]
[1641100507602,1.48070484,46870.0,46869.0,0.0001]
[1641100507800,1.70422434,46870.0,46869.0,0.0001]
[1641100508400,2.81222434,46870.0,46869.0,0.0001]
[1641100508602,1.55927174,46870.0,46869.0,0.0001]
[1641100508803,0.22775224,46870.0,46869.0,0.0001]
[1641100509001,1.45575224,46870.0,46869.0,0.0001]
[1641100509901,0.19437693,46866.0,46853.0,0.14033567]
[1641100510103,1.108,46865.0,46853.0,0.14033567]
[1641100510301,0.14033567,46860.0,46853.0,0.14033567]
[1641100510904,0.14033567,46860.0,46853.0,0.15012967]
[1641100511101,0.0060778,46859.0,46856.0,0.18]
[1641100511302,0.0060778,46859.0,46856.0,0.25435]
[1641100512803,0.0060778,46859.0,46856.0,0.07435]
[1641100513003,0.0060778,46859.0,46853.0,0.15012967]
[1641100513204,0.0060778,46859.0,46856.0,0.18]
[1641100513405,0.0060778,46859.0,46856.0,0.26692]
[1641100514506,0.0060778,46859.0,46856.0,0.08692]
[1641100514705,0.0060778,46859.0,46856.0,0.18]
[1641100517418,0.02133658,46866.0,46856.0,0.18]
[1641100517621,0.16167052,46870.0,46865.0,0.18]
[1641100517818,0.14033567,46870.0,46865.0,0.08584]
[1641100518420,1.24833567,46870.0,46865.0,0.08584]
[1641100518622,0.02133661,46866.0,46865.0,0.08584]
[1641100518823,0.07814661,46866.0,46865.0,0.08584]
[1641100519020,0.07814661,46866.0,46860.0,0.18]
[1641100519421,0.07814661,46866.0,46856.0,0.18]
[1641100519921,0.02133661,46866.0,46856.0,0.18]
[1641100520124,0.02133661,46866.0,46857.0,0.319557]
[1641100520822,0.02133661,46866.0,46863.0,0.18]
[1641100521226,0.02133661,46866.0,46857.0,0.18280663]
[1641100521426,0.02133661,46866.0,46857.0,0.009794]
[1641100522632,0.00608262,46865.0,46857.0,0.009794]
[1641100522832,0.00608262,46865.0,46863.0,0.18]
[1641100524733,0.00608262,46865.0,46857.0,0.009794]
[1641100524934,0.00608262,46865.0,46863.0,0.18]
[1641100527037,0.02133661,46866.0,46863.0,0.18]
[1641100527436,0.14550397,46864.0,46863.0,0.18]
[1641100527640,0.14550397,46864.0,46862.0,0.18]
[1641100527837,0.14550397,46865.0,46862.0,0.18]
[1641100528638,1.45505121,46863.0,46862.0,0.18]
[1641100531643,1.45505121,46864.0,46862.0,0.18]
[1641100531843,1.45505121,46864.0,46863.0,0.18]
[1641100532442,1.45505121,46864.0,46862.0,0.18]
[1641100532847,1.71740824,46869.0,46862.0,0.18]
[1641100533845,1.71740824,46869.0,46865.0,0.18]
[1641100534848,0.14550397,46869.0,46865.0,0.18]
[1641100537751,0.30260427,46872.0,46868.0,0.18]
[1641100537954,0.02133067,46879.0,46871.0,0.18]
[1641100538152,1.6902167,46882.0,46878.0,0.18]
[1641100538355,1.6902167,46882.0,46878.0,0.23768]
[1641100538754,1.6902167,46882.0,46878.0,0.05768]
[1641100539154,0.0213281,46885.0,46878.0,0.05768]
[1641100542568,1.33352381,46881.0,46878.0,0.05768]
[1641100543570,1.33352381,46881.0,46876.0,0.18]
[1641100545472,1.33352381,46881.0,46880.0,0.18]
[1641100545673,1.33352381,46881.0,46880.0,0.26278]
[1641100546174,1.33352381,46882.0,46880.0,0.26278]
[1641100546372,1.33352381,46882.0,46880.0,0.08278]
[1641100546674,1.33352381,46882.0,46880.0,0.26278]
[1641100546873,1.33352381,46882.0,46880.0,0.08278]
[1641100547076,1.33352381,46882.0,46880.0,0.26278]
[1641100547875,0.38421079,46885.0,46881.0,0.18]
[1641100549280,0.38421079,46885.0,46876.0,0.09316]
[1641100550379,0.0213281,46885.0,46876.0,0.09316]
[1641100550580,0.0213281,46885.0,46875.0,0.14033567]
[1641100552281,0.0213281,46885.0,46881.0,0.18]
[1641100552480,0.0213281,46885.0,46881.0,0.24937]
[1641100552679,0.36288269,46886.0,46881.0,0.24937]
[1641100552881,0.36288269,46886.0,46885.0,0.18]
[1641100553483,0.0213263,46889.0,46885.0,0.18]
[1641100553783,1.47283787,46889.0,46885.0,0.18]
[1641100554082,1.45151157,46889.0,46888.0,0.18]
[1641100554481,1.45151157,46892.0,46883.0,0.14033567]
[1641100554681,1.45151157,46892.0,46888.0,0.18]
[1641100555282,1.45151157,46892.0,46883.0,0.14033567]
[1641100555483,1.51762157,46892.0,46883.0,0.14033567]
[1641100556088,0.02132681,46887.0,46883.0,0.14033567]
[1641100557989,1.47283838,46887.0,46883.0,0.14033567]
[1641100558989,0.02132681,46887.0,46883.0,0.14033567]
[1641100563391,0.02132681,46887.0,46875.0,0.14033567]
[1641100563392,0.20132978,46884.0,46875.0,0.14033567]
[1641100563792,0.02132978,46884.0,46875.0,0.14033567]
[1641100564392,0.18,46882.0,46875.0,0.14033567]
[1641100564891,0.14033567,46881.0,46870.0,0.14033567]
[1641100565391,1.108,46880.0,46868.0,0.42672778]
[1641100565592,1.108,46867.0,46863.0,0.4267726]
[1641100565795,1.288,46864.0,46860.0,1.56953635]
[1641100565992,0.2013432,46861.0,46860.0,1.56953635]
[1641100566993,0.48201454,46861.0,46860.0,1.56953635]
[1641100567393,0.48201454,46861.0,46845.0,1.56953635]
[1641100568394,0.36235527,46853.0,46844.0,1.71966602]
[1641100568593,0.44588527,46853.0,46844.0,1.71966602]
[1641100568794,0.44588527,46853.0,46847.0,0.18]
[1641100568996,0.44588527,46853.0,46852.0,0.18]
[1641100569199,1.21218834,46866.0,46853.0,0.009794]
[1641100569395,1.21218834,46866.0,46853.0,0.083784]
[1641100569696,0.02134035,46858.0,46854.0,0.85387]
[1641100569896,0.02134035,46858.0,46853.0,0.009794]
[1641100570196,0.20134035,46858.0,46850.0,1.56953635]
[1641100570897,0.14033567,46855.0,46852.0,1.45529207]
[1641100571702,0.02134183,46854.0,46852.0,1.45529207]
[1641100571898,0.11549183,46854.0,46845.0,1.56953635]
[1641100572098,0.02134395,46850.0,46841.0,0.12]
[1641100572900,0.14033567,46849.0,46841.0,0.12]
[1641100574901,0.14033567,46849.0,46840.0,0.14033567]
[1641100576201,0.14033567,46849.0,46842.0,0.18]
[1641100576401,0.06071,46854.0,46846.0,0.18]
[1641100576402,0.02134189,46854.0,46846.0,0.18]
[1641100576603,0.02134189,46854.0,46843.0,0.009794]
[1641100577002,0.02134189,46854.0,46846.0,0.14033567]
[1641100578402,0.0213427,46853.0,46846.0,0.14033567]
[1641100578603,0.0831927,46853.0,46843.0,0.009794]
[1641100579004,0.14033567,46849.0,46843.0,0.009794]
[1641100579604,0.14033567,46849.0,46846.0,0.18]
[1641100580308,0.14033567,46849.0,46843.0,0.009794]
[1641100580706,0.14033567,46849.0,46844.0,0.00789322]
[1641100585834,0.14033567,46849.0,46841.0,0.00789322]
[1641100586034,0.14033567,46849.0,46845.0,0.00789322]
[1641100586435,0.14033567,46849.0,46842.0,0.00789322]
[1641100586735,0.14033567,46849.0,46840.0,0.14033567]
[1641100586736,0.14033567,46849.0,46846.0,0.00789322]
[1641100587135,0.14033567,46849.0,46841.0,0.00789322]
[1641100592444,0.36037737,46847.0,46845.0,1.45529207]
[1641100593043,0.36037737,46847.0,46846.0,0.00789322]
[1641100593245,0.36037737,46848.0,46846.0,0.00789322]
[1641100595449,0.36037737,46848.0,46846.0,1.46318529]
[1641100595949,0.36037737,46848.0,46847.0,0.00789322]
[1641100596852,0.50071304,46849.0,46847.0,0.00789322]
[1641100598754,0.14033567,46849.0,46847.0,0.00789322]
[1641100600455,0.36037737,46854.0,46847.0,0.00789322]
[1641100600657,0.60055175,46855.0,46853.0,0.18]
[1641100600855,0.60055175,46855.0,46849.0,0.42689687]
[1641100601057,0.60055175,46855.0,46854.0,0.319329]